fUSD/lending_fUSD_20260128
["ID","MTS","AMOUNT","RATE_DAILY","PERIOD"]
[403833288,1769575842818,-500.0,0.00015587,2]
[403833289,1769575842830,-500.0,0.00015587,2]
[403833290,1769575842839,-500.0,0.00015587,2]
[403833291,1769575842848,-500.0,0.00015587,2]
[403833292,1769575842858,-500.0,0.00015587,2]
[403833293,1769575842867,-500.0,0.00015587,2]
[403833294,1769575842877,-500.0,0.00015587,2]
[403833295,1769575842886,-505.25985353,0.00015587,2]
[403833296,1769575842898,-505.07555543,0.00015587,2]
[403833297,1769575842907,-500.0,0.00015587,2]
[403833298,1769575842916,-500.0,0.00015587,2]
[403833299,1769575842926,-265.38774742,0.00015587,2]
[403833300,1769575842936,-500.0,0.00015587,2]
[403833301,1769575842945,-504.97053901,0.00015587,2]
[403833302,1769575842954,-500.0,0.00015587,2]
[403833303,1769575842964,-500.0,0.00015587,2]
[403833304,1769575842974,-500.0,0.00015587,2]
[403833305,1769575842985,-504.91559011,0.00015587,2]
[403833306,1769575842994,-500.0,0.00015587,2]
[403833307,1769575843005,-537.84011812,0.00015587,2]
[403833308,1769575843015,-500.0,0.00015587,2]
[403833309,1769575843025,-500.0,0.00015587,2]
[403833310,1769575843035,-500.0,0.00015587,2]
[403833311,1769575843045,-500.0,0.00015587,2]
[403833312,1769575843054,-500.0,0.00015587,2]
[403833313,1769575843064,-500.0,0.00015618,2]
[403833315,1769575843074,-839.0,0.00015618,2]
[403833316,1769575843084,-500.0,0.00015618,2]
[403833317,1769575843093,-500.0,0.00015618,2]
[403833318,1769575843103,-500.0,0.00015618,2]
[403833319,1769575843115,-500.0,0.00015618,2]
[403833320,1769575843127,-500.0,0.00015618,2]
[403833321,1769575843140,-500.0,0.00015618,2]
[403833322,1769575843153,-500.0,0.00015618,2]
[403833323,1769575843166,-15163.30239407,0.00015663,2]
[403833324,1769575843176,-15883.6814914,0.00015664,2]
[403833325,1769575843187,-500.0,0.00015673,2]
[403833326,1769575843200,-839.0,0.00015673,2]
[403833327,1769575843212,-500.0,0.00015673,2]
[403833328,1769575843224,-500.0,0.00015673,2]
[403833329,1769575843236,-500.0,0.00015673,2]
[403833330,1769575843248,-500.0,0.00015673,2]
[403833331,1769575843260,-211.65460803,0.00015673,2]
[403833332,1769575843273,-500.0,0.00015673,2]
[403833333,1769575843284,-500.0,0.00015673,2]
[403833334,1769575843296,-500.0,0.00015727,2]
[403833335,1769575843308,-839.0,0.00015727,2]
[403833336,1769575843319,-500.0,0.00015727,2]
[403833337,1769575843330,-500.0,0.00015727,2]
[403833338,1769575843340,-500.0,0.00015727,2]
[403833339,1769575843353,-500.0,0.00015727,2]
[403833340,1769575843365,-500.0,0.00015727,2]
[403833341,1769575843377,-262.32249886,0.00015727,2]
[403833342,1769575843390,-236.38,0.00015736,2]
[403833343,1769575843403,-1085.8,0.00015744,2]
[403833344,1769575843416,-166.66,0.00015758,2]
[403833345,1769575843428,-500.0,0.00015782,2]
[403833346,1769575843441,-839.0,0.00015782,2]
[403833347,1769575843453,-500.0,0.00015782,2]
[403833348,1769575843467,-150.0,0.00015782,2]
[403833349,1769575843479,-500.0,0.00015782,2]
[403833350,1769575843490,-335.33,0.00015785,2]
[403833351,1769575843502,-500.0,0.00015837,2]
[403833352,1769575843515,-839.0,0.00015837,2]
[403833353,1769575843526,-500.0,0.00015837,2]
[403833354,1769575843539,-155.0,0.00015846,2]
[403833356,1769575843551,-500.0,0.00015892,2]
[403833357,1769575843562,-839.0,0.00015892,2]
[403833358,1769575843573,-363.51122534,0.00015892,2]
[403833359,1769575843584,-503.77912883,0.0001592,2]
[403833360,1769575843595,-206.24263098,0.0001592,2]
[403833361,1769575843607,-500.0,0.00015942,2]
[403833362,1769575843619,-500.0,0.00015942,2]
[403833363,1769575843634,-15883.6814914,0.00015943,2]
[403833364,1769575843647,-500.0,0.00015947,2]
[403833365,1769575843660,-839.0,0.00015947,2]
[403833366,1769575843673,-15163.30239407,0.00015983,2]
[403833367,1769575843684,-519.88726717,0.00015999,2]
[403833368,1769575843698,-500.0,0.00015999,2]
[403833369,1769575843708,-150.80019516,0.00016001,2]
[403833370,1769575843719,-839.0,0.00016001,2]
[403833371,1769575843730,-1085.8,0.00016018,2]
[403833372,1769575843741,-839.0,0.00016056,2]
[403833373,1769575843752,-155.0,0.00016106,2]
[403833375,1769575843765,-839.0,0.00016111,2]
[403833378,1769575843779,-839.0,0.00016166,2]
[403833380,1769575843790,-839.0,0.0001622,2]
[403833382,1769575843800,-15883.6814914,0.00016223,2]
[403833384,1769575843811,-510.0,0.00016243,2]
[403833386,1769575843825,-166.66,0.00016246,2]
[403833388,1769575843836,-511.31408016,0.00016258,2]
[403833389,1769575843847,-500.0,0.00016258,2]
[403833390,1769575843860,-848.35924827,0.00016275,2]
[403833391,1769575843873,-1085.8,0.00016292,2]
[403833392,1769575843884,-15163.30239407,0.00016302,2]
[403833393,1769575843898,-1217.67499619,0.00016361,2]
[403833394,1769575843909,-2148.12302891,0.00016361,2]
[403833395,1769575843920,-3213.46358044,0.00016361,2]
[403833396,1769575843930,-4347.9216,0.00016361,2]
[403833397,1769575843942,-155.0,0.00016365,2]
[403833398,1769575843954,-506.74896845,0.00016373,2]
[403833399,1769575843965,-500.0,0.00016373,2]
[403833400,1769575843977,-500.93042604,0.00016373,2]
[403833401,1769575843988,-386.79569246,0.00016424,2]
[403833402,1769575843998,-2395.93,0.00016438,2]
[403833403,1769575844010,-2395.93,0.00016438,2]
[403833404,1769575844021,-2395.93,0.00016438,2]
[403833405,1769575844033,-2395.93,0.00016438,2]
[403833406,1769575844044,-2395.93,0.00016438,2]
[403833407,1769575844055,-2395.93,0.00016438,2]
[403833408,1769575844066,-2395.93,0.00016438,2]
[403833409,1769575844078,-2395.93,0.00016438,2]
[403833410,1769575844089,-2395.93,0.00016438,2]
[403833411,1769575844101,-2395.93,0.00016438,2]
[403833412,1769575844112,-2395.93,0.00016438,2]
[403833413,1769575844124,-2395.93,0.00016438,2]
[403833414,1769575844135,-2395.93,0.00016438,2]
[403833415,1769575844146,-2395.93,0.00016438,2]
[403833416,1769575844172,-2395.93,0.00016438,2]
[403833417,1769575844183,-2395.93,0.00016438,2]
[403833418,1769575844194,-2395.93,0.00016438,2]
[403833419,1769575844204,-2395.93,0.00016438,2]
[403833420,1769575844215,-2395.93,0.00016438,2]
[403833421,1769575844226,-2395.93,0.00016438,2]
[403833422,1769575844236,-2395.93,0.00016438,2]
[403833423,1769575844247,-2395.93,0.00016438,2]
[403833424,1769575844258,-2395.93,0.00016438,2]
[403833425,1769575844268,-2396.0314044,0.00016438,2]
[403833426,1769575844280,-544.60815205,0.00016438,2]
[403833427,1769575844290,-500.0,0.00016438,2]
[403833428,1769575844300,-578.39080156,0.00016438,2]
[403833429,1769575844311,-500.0,0.00016438,2]
[403833430,1769575844322,-500.0,0.00016438,2]
[403833431,1769575844332,-500.0,0.00016438,2]
[403833432,1769575844343,-500.0,0.00016438,2]
[403833433,1769575844354,-500.0,0.00016438,2]
[403833434,1769575844365,-500.0,0.00016438,2]
[403833435,1769575844375,-500.0,0.00016438,2]
[403833436,1769575844386,-500.0,0.00016438,2]
[403833437,1769575844397,-500.0,0.00016438,2]
[403833438,1769575844409,-500.0,0.00016438,2]
[403833439,1769575844419,-500.0,0.00016438,2]
[403833440,1769575844431,-500.0,0.00016438,2]
[403833441,1769575844442,-500.0,0.00016438,2]
[403833442,1769575844453,-500.0,0.00016438,2]
[403833443,1769575844464,-500.0,0.00016438,2]
[403833444,1769575844475,-500.0,0.00016438,2]
[403833445,1769575844485,-500.0,0.00016438,2]
[403833446,1769575844497,-500.0,0.00016438,2]
[403833447,1769575844510,-500.0,0.00016438,2]
[403833448,1769575844522,-500.0,0.00016438,2]
[403833449,1769575844533,-215.0,0.00016438,2]
[403833450,1769575844544,-500.0,0.00016438,2]
[403833451,1769575844555,-500.0,0.00016438,2]
[403833452,1769575844566,-500.0,0.00016438,2]
[403833453,1769575844577,-500.0,0.00016438,2]
[403833454,1769575844588,-500.0,0.00016438,2]
[403833455,1769575844599,-500.0,0.00016438,2]
[403833456,1769575844610,-500.0,0.00016438,2]
[403833457,1769575844620,-500.0,0.00016438,2]
[403833458,1769575844631,-420.0,0.00016491,2]
[403833459,1769575844642,-15883.6814914,0.00016502,2]
[403833460,1769575844653,-335.33,0.00016537,2]
[403833461,1769575844665,-657.88569144,0.00016537,2]
[403833462,1769575844677,-2500.0,0.00016537,2]
[403833463,1769575844688,-5075.37527096,0.00016537,2]
[403833464,1769575844700,-195.0,0.00016537,2]
[403833465,1769575844711,-250.0,0.00016537,2]
[403833466,1769575844722,-193.0,0.00016537,2]
[403833467,1769575844733,-300.0,0.00016537,2]
[403833468,1769575844744,-250.0,0.00016537,2]
[403833469,1769575844755,-1085.8,0.00016566,2]
[403833470,1769575844765,-1680.0,0.00016574,2]
[403833471,1769575844776,-750.02,0.00016586,2]
[403833472,1769575844787,-15163.30239407,0.00016622,2]
[403833473,1769575844798,-155.0,0.00016625,2]
[403833474,1769575844808,-166.66,0.00016734,2]
[403833475,1769575844822,-15883.6814914,0.00016782,2]
[403833476,1769575844832,-275.48815625,0.00016804,2]
[403833477,1769575844843,-1085.8,0.0001684,2]
[403833478,1769575844854,-155.0,0.00016885,2]
[403833479,1769575844867,-9058.37508753,0.000169,2]
[403833480,1769575844877,-15163.30239407,0.00016941,2]
[403833481,1769575844887,-15883.6814914,0.00017061,2]
[403833482,1769575844900,-500.0,0.00017098,2]
[403833483,1769575844910,-524.93822417,0.00017098,2]
[403833484,1769575844921,-322.6107,0.00017099,2]
[403833485,1769575844932,-500.0,0.00017099,2]
[403833486,1769575844943,-500.0,0.00017099,2]
[403833487,1769575844954,-500.0,0.00017099,2]
[403833488,1769575844965,-250.0,0.00017099,2]
[403833489,1769575844975,-721.12765535,0.00017099,2]
[403833490,1769575844987,-500.0,0.00017099,2]
[403833491,1769575844997,-500.0,0.00017099,2]
[403833492,1769575845008,-250.0,0.00017099,2]
[403833493,1769575845019,-500.0,0.00017099,2]
[403833494,1769575845029,-250.0,0.00017099,2]
[403833495,1769575845041,-500.0,0.00017099,2]
[403833496,1769575845051,-250.0,0.00017099,2]
[403833497,1769575845062,-500.0,0.00017099,2]
[403833498,1769575845073,-250.0,0.00017099,2]
[403833499,1769575845084,-500.0,0.00017099,2]
[403833500,1769575845094,-250.0,0.00017099,2]
[403833501,1769575845105,-500.0,0.00017099,2]
[403833502,1769575845115,-250.0,0.00017099,2]
[403833503,1769575845126,-500.0,0.00017099,2]
[403833504,1769575845136,-578.20924308,0.00017099,2]
[403833505,1769575845147,-250.0,0.00017099,2]
[403833506,1769575845158,-500.0,0.00017099,2]
[403833507,1769575845168,-250.0,0.00017099,2]
[403833508,1769575846268,-250.0,0.00017099,2]
[403833509,1769575846313,-250.0,0.00017099,2]
[403833510,1769575846335,-250.0,0.00017099,2]
[403833511,1769575846344,-250.0,0.00017099,2]
[403833512,1769575846353,-500.0,0.00017099,2]
[403833513,1769575846362,-250.0,0.00017099,2]
[403833514,1769575846371,-250.0,0.00017099,2]
[403833515,1769575846380,-500.0,0.00017099,2]
[403833516,1769575846389,-250.0,0.00017099,2]
[403833517,1769575846398,-500.0,0.00017099,2]
[403833518,1769575846407,-250.0,0.00017099,2]
[403833520,1769575846416,-500.0,0.00017099,2]
[403833521,1769575846425,-309.92507201,0.00017099,2]
[403833522,1769575846434,-500.0,0.00017099,2]
[403833523,1769575846443,-500.0,0.00017099,2]
[403833524,1769575846452,-500.0,0.00017099,2]
[403833525,1769575846462,-500.0,0.00017099,2]
[403833526,1769575846471,-500.0,0.00017099,2]
[403833527,1769575846480,-174.61919141,0.00017099,2]
[403833528,1769575846491,-500.0,0.00017099,2]
[403833529,1769575846500,-1000.0,0.00017099,2]
[403833530,1769575846510,-1000.0,0.00017099,2]
[403833531,1769575846520,-209.40437684,0.00017099,2]
[403833532,1769575846530,-1000.0,0.00017099,2]
[403833533,1769575846540,-1000.0,0.00017099,2]
[403833534,1769575846550,-1000.0,0.00017099,2]
[403833535,1769575846560,-1000.0,0.00017099,2]
[403833536,1769575846570,-1000.0,0.00017099,2]
[403833538,1769575846579,-1000.0,0.00017099,2]
[403833539,1769575846590,-1000.0,0.00017099,2]
[403833540,1769575846600,-250.0,0.00017099,2]
[403833541,1769575846611,-250.0,0.00017099,2]
[403833542,1769575846620,-1000.0,0.00017099,2]
[403833543,1769575846630,-250.0,0.00017099,2]
[403833544,1769575846639,-1000.0,0.00017099,2]
[403833545,1769575846648,-250.0,0.00017099,2]
[403833546,1769575846658,-250.0,0.00017099,2]
[403833547,1769575846667,-250.0,0.00017099,2]
[403833548,1769575846676,-854.2589148,0.00017099,2]
[403833549,1769575846685,-250.0,0.00017099,2]
[403833550,1769575846694,-250.0,0.00017099,2]
[403833551,1769575846703,-250.0,0.00017099,2]
[403833552,1769575846712,-250.0,0.00017099,2]
[403833553,1769575846723,-207.69124521,0.00017099,2]
[403833554,1769575846733,-250.0,0.00017099,2]
[403833555,1769575846743,-250.0,0.00017099,2]
[403833556,1769575846753,-250.0,0.00017099,2]
[403833557,1769575846763,-250.0,0.00017099,2]
[403833558,1769575846773,-250.0,0.00017099,2]
[403833559,1769575846782,-1000.0,0.00017099,2]
[403833560,1769575846791,-153.67529487,0.00017099,2]
[403833561,1769575846800,-1000.0,0.00017099,2]
[403833562,1769575846810,-1000.0,0.00017099,2]
[403833563,1769575846819,-1000.0,0.00017099,2]
[403833564,1769575846831,-1000.0,0.00017099,2]
[403833565,1769575846840,-151.0,0.00017099,2]
[403833566,1769575846850,-1000.0,0.00017099,2]
[403833567,1769575846861,-1000.0,0.00017099,2]
[403833568,1769575846871,-1000.0,0.00017099,2]
[403833569,1769575846881,-1000.0,0.00017099,2]
[403833570,1769575846891,-1000.0,0.00017099,2]
[403833571,1769575846901,-1000.0,0.00017099,2]
[403833572,1769575846910,-10076.80540011,0.00017101,2]
[403833573,1769575846919,-1085.80857683,0.00017114,2]
[403833574,1769575846928,-155.0,0.00017145,2]
[403833575,1769575846938,-217.15233878,0.00017154,2]
[403833576,1769575846951,-500.0,0.00017205,2]
[403833577,1769575846961,-750.02,0.00017208,2]
[403833578,1769575846971,-225.18697532,0.00017209,2]
[403833579,1769575846980,-166.66,0.00017222,2]
[403833580,1769575846990,-15163.30239407,0.00017261,2]
[403833581,1769575846999,-233.51889341,0.00017264,2]
[403833582,1769575847010,-335.33,0.00017289,2]
[403833583,1769575847019,-242.15909246,0.00017319,2]
[403833584,1769575847029,-15883.6814914,0.00017341,2]
[403833585,1769575847039,-251.11897888,0.00017374,2]
[403833586,1769575847048,-260.4103811,0.00017429,2]
[403833587,1769575847058,-705.0,0.00017437,2]
[403833588,1769575847067,-150.77,0.00017452,2]
[403833589,1769575847077,-150.0,0.00017452,2]
[403833590,1769575847087,-150.0,0.00017452,2]
[403833591,1769575847096,-500.0,0.00017478,2]
[403833592,1769575847106,-270.0455652,0.00017484,2]
[403833593,1769575847116,-236.38,0.00017525,2]
[403833594,1769575847125,-522.13176756,0.00017526,2]
[403833595,1769575847136,-280.03725112,0.00017539,2]
[403833596,1769575847145,-15163.30239407,0.0001758,2]
[403833597,1769575847156,-290.39862941,0.00017594,2]
[403833598,1769575847166,-4400.0,0.000176,6]
[403833599,1769575847176,-15883.6814914,0.0001762,2]
[403833600,1769575847186,-2756.0,0.00017638,2]
[403833601,1769575847196,-674.63684387,0.0001764,2]
[403833602,1769575847207,-181.08010149,0.00017647,2]
[403833603,1769575847218,-885.86649465,0.00017647,2]
[403833604,1769575847228,-301.1433787,0.00017649,2]
[403833605,1769575847237,-2756.0,0.00017681,2]
[403833606,1769575847247,-5900.0,0.000177,6]
[403833607,1769575847257,-877.25345748,0.00017739,2]
[403833608,1769575847266,-401.0,0.00017766,2]
[403833609,1769575847276,-7400.0,0.000178,6]
[403833610,1769575847286,-218.25,0.00017808,4]
[403833611,1769575847296,-750.02,0.0001783,2]
[403833612,1769575847311,-381.02006328,0.00017847,2]
[403833613,1769575847321,-184.0,0.00017854,2]
[403833614,1769575847330,-200.0,0.00017855,2]
[403833615,1769575847340,-401.0,0.00017856,2]
[403833616,1769575847350,-200.0,0.00017856,2]
[403833617,1769575847360,-10000.0,0.000179,2]
[403833618,1769575847370,-15883.6814914,0.000179,2]
[403833619,1769575847380,-1400.0,0.000179,6]
[403833620,1769575847389,-5423.7170479,0.000179,2]
[403833621,1769575847399,-152.15367678,0.000179,3]
[403833622,1769575847408,-15163.30239407,0.000179,2]
[403833623,1769575847419,-10503.0,0.000179,2]
[403833624,1769575847429,-2756.0,0.00017907,2]
[403833625,1769575847439,-2000.0,0.0001791,2]
[403833626,1769575847449,-2000.0,0.0001791,2]
[403833627,1769575847460,-2000.0,0.0001791,2]
[403833628,1769575847470,-414.896,0.0001791,2]
[403833629,1769575847480,-2000.0,0.00017919,2]
[403833630,1769575847489,-2000.0,0.00017919,2]
[403833631,1769575847503,-2000.0,0.00017919,2]
[403833632,1769575847512,-621.0,0.00017963,2]
[403833633,1769575847522,-34217.15593645,0.00017971,2]
[403833634,1769575847532,-500.0,0.00017973,2]
[403833635,1769575847542,-150.0,0.00017973,2]
[403833636,1769575847551,-1000.0,0.00017976,2]
[403833637,1769575847561,-1000.0,0.00017976,2]
[403833638,1769575847571,-1000.0,0.00017976,2]
[403833639,1769575847581,-1000.0,0.00017976,2]
[403833640,1769575847590,-1000.0,0.00017976,2]
[403833641,1769575847600,-150.00043156,0.00017979,2]
[403833642,1769575847609,-502.48269816,0.00017982,2]
[403833643,1769575847619,-222.7140054,0.00017982,2]
[403833644,1769575847628,-986.689,0.00017983,2]
[403833645,1769575847638,-328.41754599,0.0001799,2]
[403833646,1769575847648,-328.41754599,0.0001799,2]
[403833647,1769575847658,-2756.0,0.00017991,2]
[403833648,1769575847668,-193.47385299,0.00017996,2]
[403833649,1769575847678,-1268.2967592,0.00017996,2]
[403833650,1769575847687,-500.0,0.00017998,2]
[403833651,1769575847701,-500.0,0.00017998,2]
[403833652,1769575847711,-150.0,0.00017999,2]
[403833653,1769575847720,-150.0,0.00017999,2]
[403833654,1769575847730,-183.10914216,0.00017999,2]
[403833655,1769575847739,-1389.589688,0.00017999,2]
[403833656,1769575847749,-273128.1492291,0.00017999,2]
[403833657,1769575847759,-3650.8144921,0.00017999,2]
[403833658,1769575847769,-300.0,0.00017999,2]
[403833659,1769575847778,-13154.4861363,0.00017999,2]
[403833660,1769575847788,-300.0,0.00017999,2]
[403833661,1769575847797,-515.28066526,0.00017999,2]
[403833662,1769575847807,-300.0,0.00017999,2]
[403833663,1769575847818,-300.0,0.00017999,2]
[403833664,1769575847830,-307.8279316,0.00017999,2]
[403833665,1769575847839,-666.0,0.00017999,2]
[403833666,1769575847849,-61140.9439541,0.00017999,2]
[403833667,1769575847859,-300.0,0.00017999,2]
[403833668,1769575847868,-666.0,0.00017999,2]
[403833669,1769575847878,-243.65670637,0.00017999,2]
[403833670,1769575847888,-796163.92293809,0.00018,2]
[403833671,1769575847901,-1191.25931111,0.00018,2]
[403833672,1769575847911,-151.0,0.00018,2]
[403833673,1769575847921,-151.0,0.00018,2]
[403833674,1769575847930,-4443.50660987,0.00018,2]
[403833675,1769575847940,-2722234.08339981,0.00018,2]
[403833676,1769575848925,-1722.52816161,0.00018,2]
[403833677,1769575848938,-12685.77731841,0.00018,2]
[403833678,1769575848950,-642.45519309,0.00018,2]
[403833679,1769575848961,-512.94854318,0.00018,2]
[403833680,1769575848971,-432.81938665,0.00018,2]
[403833681,1769575849099,-151.0,0.00015484,2]
[403833682,1769575849112,-632.94939895,0.00018,2]
[403833683,1769575849142,-342.95156157,0.00018,2]
[403833684,1769575849300,-11390.62499368,0.00018,2]
[403833695,1769575886718,150.0,0.00014998,2]
[403833700,1769575887295,150.0,0.00014998,2]
[403833711,1769575887874,270.71626544,0.00014998,2]
[403833713,1769575887906,229.28373456,0.00014998,2]
[403833716,1769576097187,293.87634796,0.00014998,2]
[403833721,1769576183966,4317.5585,0.00014998,2]
[403833723,1769576196637,250.0,0.00015098,5]
[403833724,1769576196956,250.0,0.00015098,5]
[403833725,1769576198033,250.0,0.00015098,5]
[403833726,1769576198111,250.0,0.00015098,5]
[403833727,1769576198178,250.0,0.00015098,5]
[403833728,1769576198222,250.0,0.00015098,5]
[403833729,1769576198503,250.0,0.00015098,5]
[403833730,1769576198817,250.0,0.00015098,5]
[403833731,1769576199130,250.0,0.00015098,5]
[403833732,1769576199525,250.0,0.00015098,5]
[403833733,1769576199834,250.0,0.00015098,5]
[403833734,1769576200129,250.0,0.00015098,5]
[403833735,1769576200439,250.0,0.00015098,5]
[403833736,1769576200747,250.0,0.00015098,5]
[403833737,1769576201031,250.0,0.00015098,5]
[403833738,1769576201319,250.0,0.00015098,5]
[403833739,1769576201609,250.0,0.00015098,5]
[403833740,1769576202384,250.0,0.00015098,5]
[403833741,1769576202480,250.0,0.00015098,5]
[403833742,1769576202576,250.0,0.00015098,5]
[403833743,1769576202767,316.187141,0.00015098,5]
[403833745,1769576209191,1000.0,0.00014998,2]
[403833746,1769576226863,2500.0,0.00014998,2]
[403833747,1769576259482,404.7936701,0.00014699,2]
[403833751,1769576329029,6095.2163299,0.00014998,2]
[403833752,1769576329051,10000.01,0.00014998,2]
[403833753,1769576329074,10000.01,0.00014998,2]
[403833754,1769576329097,7171.1963701,0.00014998,2]
[403833755,1769576335769,407.97579514,0.00014998,2]
[403833756,1769576352674,163.47,0.00021,30]
[403833757,1769576359936,1000.0,0.00014998,2]
[403833758,1769576384407,1420.83783476,0.00014998,2]
[403833759,1769576384429,1079.16216524,0.00014998,2]
[403833761,1769576459647,285.79091132,0.00014998,2]
[403833762,1769576459778,153.94607315,0.00014998,2]
[403833763,1769576493323,2163.105,0.00014796,2]
[403833764,1769576493379,155.984,0.00014796,2]
[403833765,1769576501216,500.0,0.00014988,2]
[403833766,1769576507664,5662.02185029,0.00014998,2]
[403833767,1769576507689,10000.01,0.00014998,2]
[403833768,1769576507712,10000.01,0.00014998,2]
[403833769,1769576507736,7604.39084971,0.00014998,2]
[403833771,1769576556292,2395.61915029,0.00014998,2]
[403833772,1769576556316,10000.01,0.00014998,2]
[403833773,1769576556339,10000.01,0.00014998,2]
[403833774,1769576701229,1200.0,0.00014997,2]
[403833776,1769576805090,-455.23429815,0.00014998,2]
[403833777,1769576829451,300.0,0.000149,5]
[403833782,1769576905871,1681.0,0.000155,3]
[403833783,1769576960848,8800.01,0.00014992,2]
[403833784,1769576960874,10000.01,0.00014992,2]
[403833785,1769576960899,10000.01,0.00014992,2]
[403833786,1769576960927,10000.01,0.00014992,2]
[403833787,1769576960952,10000.01,0.00014992,2]
[403833788,1769576960977,10000.01,0.00014992,2]
[403833789,1769576961007,10000.01,0.00014992,2]
[403833790,1769576961032,10000.01,0.00014992,2]
[403833791,1769576961056,10000.01,0.00014992,2]
[403833792,1769576961082,10000.01,0.00014992,2]
[403833793,1769576968245,5533.0,0.000155,3]
[403833794,1769576993832,-9531.98515204,0.00014992,2]
[403833795,1769576993935,-10000.01,0.00014992,2]
[403833796,1769576994063,-10000.01,0.00014992,2]
[403833797,1769576996554,-10000.01,0.00014992,2]
[403833798,1769576999351,5533.0,0.000155,3]
[403833800,1769577004641,-10000.01,0.00014992,2]
[403833801,1769577004898,-10000.01,0.00014992,2]
[403833802,1769577005014,-10000.01,0.00014992,2]
[403833803,1769577008149,539.886745,7.945e-05,2]
[403833804,1769577030958,5533.0,0.000155,5]
[403833805,1769577031179,5533.0,0.000154,3]
[403833807,1769577032170,-303.999998,0.00014992,2]
[403833808,1769577032227,-299.99,0.00014992,2]
[403833809,1769577032239,-4210.08546336,0.00014992,2]
[403833810,1769577032284,-776.15703811,0.00014992,2]
[403833828,1769577038323,-335.96000004,0.00014991,2]
[403833829,1769577038336,-164.03999996,0.00014991,2]
[403833830,1769577038346,-183.98423162,0.00014991,2]
[403833831,1769577038366,-365.23085993,0.00014991,2]
[403833832,1769577038376,-612.63727643,0.00014991,2]
[403833833,1769577038387,-500.0,0.00014991,2]
[403833834,1769577038397,-803.16575444,0.00014991,2]
[403833835,1769577038407,-500.0,0.00014991,2]
[403833836,1769577038417,-803.16575444,0.00014991,2]
[403833837,1769577038427,-500.0,0.00014991,2]
[403833838,1769577038438,-803.16575444,0.00014991,2]
[403833839,1769577038448,-558.27604603,0.00014991,2]
[403833840,1769577038459,-500.0,0.00014991,2]
[403833841,1769577038469,-803.16575444,0.00014991,2]
[403833842,1769577038479,-803.16575444,0.00014991,2]
[403833843,1769577038489,-573.64757927,0.00014991,2]
[403833844,1769577038499,-803.16575444,0.00014991,2]
[403833845,1769577038509,-63458.11862782,0.00014992,2]
[403833848,1769577038635,-769.31118832,0.00014991,2]
[403833850,1769577038737,-33.85456612,0.00014991,2]
[403833851,1769577038747,-803.16575444,0.00014991,2]
[403833852,1769577038757,-126.00789632,0.00014991,2]
[403833853,1769577038769,-397.72652999,0.00014991,2]
[403833854,1769577038779,-803.16575444,0.00014991,2]
[403833855,1769577038788,-114.30828662,0.00014991,2]
[403833857,1769577040675,-688.85746782,0.00014991,2]
[403833858,1769577040686,-803.16575444,0.00014991,2]
[403833859,1769577040695,-562.96175499,0.00014991,2]
[403833861,1769577040707,-240.20399945,0.00014991,2]
[403833863,1769577040716,-741.15822751,0.00014991,2]
[403833865,1769577040727,-62.00752693,0.00014991,2]
[403833867,1769577040736,-803.16575444,0.00014991,2]
[403833869,1769577040745,-803.16575444,0.00014991,2]
[403833871,1769577040754,-803.16575444,0.00014991,2]